bitfinex/quotes_ETHUSD_20250626
["timestamp","ask_amount","ask_price","bid_price","bid_amount"]
[1750979168894,0.7761,2411.5,2411.2,0.2072]
[1750979170003,4.14698701,2411.4,2411.1,0.001]
[1750979170300,4.90361254,2411.2,2411.1,0.001]
[1750979170507,14.11361254,2411.2,2411.1,0.001]
[1750979173402,24.11361254,2411.2,2411.1,0.001]
[1750979174175,38.99538243,2411.2,2411.1,0.001]
[1750979175262,4.69868901,2410.4,2410.3,0.001]
[1750979175558,15.0372124,2410.4,2410.3,0.001]
[1750979175729,25.0372124,2410.4,2410.3,0.001]
[1750979178819,16.3682124,2410.4,2410.3,0.001]
[1750979179021,24.15448901,2410.4,2410.3,0.001]
[1750979183252,15.48348901,2410.4,2410.3,0.001]
[1750979183446,24.17348901,2410.4,2410.3,0.001]
[1750979183825,11.3348,2410.4,2410.3,0.001]
[1750979184133,14.69868901,2410.4,2410.3,0.001]
[1750979184334,25.27341279,2410.4,2410.3,0.001]
[1750979184932,21.12472378,2410.4,2410.3,0.001]
[1750979185131,23.38868901,2410.4,2410.3,0.001]
[1750979185551,19.24,2410.4,2410.3,0.001]
[1750979186360,8.687,2410.4,2410.3,0.001]
[1750979187460,0.2072,2410.5,2410.3,0.001]
[1750979187665,8.686,2410.4,2410.3,0.001]
[1750979189057,1.817,2410.4,2410.3,0.001]
[1750979189370,6.864,2410.4,2410.3,0.2082]
[1750979190134,10.367,2410.7,2410.3,1.0091]
[1750979190471,6.867,2410.6,2410.3,1.0091]
[1750979190670,6.867,2410.6,2410.3,0.8019]
[1750979190848,6.867,2410.6,2410.5,0.2072]
[1750979191768,1.817,2410.8,2410.5,0.2072]
[1750979191971,6.867,2410.7,2410.6,0.7938]
[1750979192377,6.867,2410.7,2410.6,1.001]
[1750979192876,6.867,2410.7,2410.3,0.001]
[1750979192877,12.09086191,2410.7,2410.3,0.7948]
[1750979193039,7.7354,2410.7,2410.3,0.7948]
[1750979193241,7.7354,2410.7,2410.4,0.2072]
[1750979194158,11.88366237,2410.7,2410.4,0.2072]
[1750979194345,11.88366237,2410.7,2410.3,0.7948]
[1750979194346,0.55,2410.4,2410.3,0.001]
[1750979194550,12.57488901,2410.4,2410.3,0.001]
[1750979194961,8.4262,2410.4,2410.3,0.001]
[1750979195373,12.57488901,2410.4,2410.3,0.001]
[1750979196382,30.44488901,2410.4,2410.3,0.001]
[1750979196589,34.45821325,2410.4,2410.3,0.001]
[1750979197644,30.30952424,2410.4,2410.3,0.001]
[1750979197839,19.4232,2410.4,2410.3,0.001]
[1750979198040,1.817,2410.4,2410.3,0.001]
[1750979198246,8.696,2410.4,2410.3,0.001]
[1750979199796,10.37,2410.5,2410.3,0.001]
[1750979200001,8.696,2410.4,2410.3,0.2082]
[1750979200704,8.696,2410.4,2410.3,1.024]
[1750979201012,10.37,2410.5,2410.3,1.024]
[1750979201198,8.694,2410.4,2410.3,1.024]
[1750979202075,6.877,2410.4,2410.3,1.024]
[1750979202307,6.876,2410.4,2410.3,1.024]
[1750979207126,10.37,2410.5,2410.3,1.86960032]
[1750979207415,6.866,2410.4,2410.3,1.86960032]
[1750979207586,6.866,2410.4,2410.3,1.66240032]
[1750979207885,6.866,2410.4,2410.3,1.86960032]
[1750979208298,6.864,2410.5,2410.4,0.792]
[1750979208527,0.98899675,2411.2,2410.4,0.792]
[1750979208786,1.817,2410.8,2410.4,0.792]
[1750979209010,0.98899675,2411.2,2410.9,0.2072]
[1750979209199,8.68,2411.1,2410.9,0.2072]
[1750979209716,0.2072,2411.3,2410.9,0.2072]
[1750979209893,1.817,2411.2,2410.9,0.2072]
[1750979210098,8.679,2411.2,2410.9,0.2072]
[1750979210985,6.86,2411.1,2410.9,0.2072]
[1750979213220,1.817,2411.2,2410.9,0.2072]
[1750979213636,6.855,2411.1,2410.9,0.2072]
[1750979220699,4.14765657,2411.0,2410.4,0.7618]
[1750979220905,0.8143,2410.9,2410.6,0.2072]
[1750979221210,6.852,2410.8,2410.6,0.2072]
[1750979222023,5.95317272,2410.7,2410.6,0.2072]
[1750979222236,5.95317272,2410.7,2410.3,0.001]
[1750979222237,4.14868901,2410.4,2410.3,0.001]
[1750979222459,12.38288901,2410.4,2410.3,0.001]
[1750979222643,12.59008901,2410.4,2410.3,0.001]
[1750979225635,14.39708901,2410.4,2410.3,0.001]
[1750979225817,16.2516332,2410.4,2410.3,0.001]
[1750979226018,7.5916332,2410.4,2410.3,0.001]
[1750979226373,16.2516332,2410.4,2410.3,0.001]
[1750979226534,14.39708901,2410.4,2410.3,0.001]
[1750979227951,8.659,2410.4,2410.3,0.001]
[1750979228158,8.658,2410.4,2410.3,0.001]
[1750979228329,0.55,2410.5,2410.3,0.001]
[1750979228534,0.2072,2410.6,2410.3,0.001]
[1750979228853,8.657,2410.4,2410.3,0.001]
[1750979229845,0.72028829,2410.6,2410.3,0.001]
[1750979230043,0.2072,2410.6,2410.3,0.001]
[1750979230349,8.657,2410.5,2410.4,0.2072]
[1750979231946,8.657,2410.5,2410.4,0.9756]
[1750979232143,1.805,2410.5,2410.4,0.9756]
[1750979232332,8.656,2410.5,2410.4,0.9756]
[1750979233660,0.7572,2411.0,2410.4,0.9756]
[1750979233955,8.652,2410.9,2410.6,0.2072]
[1750979234538,0.7572,2411.0,2410.6,0.2072]
[1750979234758,8.652,2410.9,2410.6,0.2072]
[1750979237469,8.652,2410.9,2410.4,0.7684]
[1750979237672,8.652,2410.9,2410.8,0.2072]
[1750979237851,8.646,2410.9,2410.8,0.2072]
[1750979239963,0.2072,2411.2,2410.8,0.2072]
[1750979240455,8.644,2411.1,2410.8,0.2072]
[1750979240651,0.2072,2411.2,2410.8,0.2072]
[1750979240854,1.805,2411.1,2410.9,0.2072]
[1750979241056,1.805,2411.1,2411.0,0.7815]
[1750979241281,8.642,2411.1,2411.0,0.9887]
[1750979243002,10.37,2411.4,2411.0,0.9887]
[1750979243288,1.793,2411.2,2411.0,0.9887]
[1750979243489,8.628,2411.2,2411.0,0.7815]
[1750979243665,8.628,2411.2,2411.1,0.2072]
[1750979244175,6.835,2411.6,2411.2,0.7872]
[1750979244679,6.838,2411.6,2411.5,0.2072]
[1750979246071,1.793,2411.7,2411.5,0.2072]
[1750979246271,6.835,2411.6,2411.5,0.2072]
[1750979250300,7.5956,2411.6,2411.5,0.2072]
[1750979250499,9.36374797,2411.6,2411.5,0.2072]
[1750979250672,14.0604376,2411.6,2410.8,0.7779]
[1750979250868,14.06043512,2411.6,2411.2,0.2072]
[1750979251317,14.06043512,2411.6,2410.8,0.7779]
[1750979251318,4.69686968,2411.5,2410.8,0.7779]
[1750979251615,0.7572,2411.5,2411.1,0.2072]
[1750979251771,1.42676536,2411.4,2411.1,0.2072]
[1750979251972,7.5956,2411.6,2410.8,0.7779]
[1750979252169,6.835,2411.6,2411.3,0.2072]
[1750979252513,8.624,2411.5,2411.3,0.2072]
[1750979253270,1.3021,2411.4,2410.3,0.7701]
[1750979253472,4.14808185,2410.8,2410.7,0.2072]
[1750979253792,4.14808185,2410.8,2410.3,0.001]
[1750979253793,12.78911386,2410.8,2410.4,0.2072]
[1750979254168,4.14819095,2410.7,2410.4,0.2072]
[1750979254468,8.641,2410.8,2410.4,0.2072]
[1750979254681,0.9593,2410.9,2410.4,0.2072]
[1750979255000,0.55,2411.0,2410.6,0.2072]
[1750979255205,8.641,2410.9,2410.3,0.001]
[1750979255521,8.641,2410.9,2410.8,0.2072]
[1750979272460,12.78882861,2410.9,2410.8,0.2072]
[1750979272659,8.641,2410.9,2410.8,0.2072]
[1750979279166,15.79195651,2411.5,2410.8,0.2072]
[1750979279167,10.7822,2411.4,2410.8,0.9673]
[1750979279469,12.76722397,2411.3,2410.8,0.7601]
[1750979279764,1.3322,2411.2,2410.6,0.7601]
[1750979279929,6.827,2411.1,2410.8,0.2072]
[1750979280337,10.97450658,2411.1,2410.8,0.2072]
[1750979280734,6.827,2411.1,2410.8,0.2072]
[1750979280968,0.783,2410.6,2410.3,0.001]
[1750979281174,8.621,2410.5,2410.3,0.001]
[1750979281976,4.14868901,2410.4,2410.3,0.001]
[1750979282175,5.49648901,2410.4,2410.3,0.001]
[1750979282478,3.91749784,2410.4,2410.3,0.001]
[1750979282675,10.0,2410.9,2410.3,0.001]
[1750979282976,14.69850429,2410.6,2410.3,0.001]
[1750979283162,8.656,2410.5,2410.3,0.001]
[1750979283550,14.6984185,2410.6,2410.3,0.001]
[1750979283755,8.655,2410.4,2410.3,0.001]
[1750979284275,14.6984185,2410.6,2410.3,0.001]
[1750979284276,0.55,2410.6,2410.3,0.001]
[1750979284484,8.656,2410.4,2410.3,0.001]
[1750979285481,4.14784224,2410.9,2410.3,0.001]
[1750979285780,8.657,2410.8,2410.3,0.001]
[1750979285980,8.657,2410.7,2410.3,0.001]
[1750979286165,8.657,2410.7,2410.4,0.8209]
[1750979286879,8.655,2410.6,2410.4,0.8209]
[1750979287051,6.862,2410.5,2410.4,0.8209]
[1750979287252,6.862,2410.5,2410.3,0.001]
[1750979290957,6.862,2410.5,2410.4,0.2072]
[1750979296200,0.7692,2410.8,2410.4,0.2072]
[1750979296201,6.855,2410.6,2410.5,0.8183]
[1750979296492,1.793,2410.8,2410.5,0.8183]
[1750979296493,6.855,2410.7,2410.5,0.8183]
[1750979296892,6.855,2410.7,2410.6,0.2072]
[1750979301175,6.855,2410.7,2410.3,0.7748]
[1750979301380,7.6096,2410.7,2410.5,0.2072]
[1750979301587,0.55,2410.6,2410.3,0.001]
[1750979301784,0.7572,2410.6,2410.3,0.001]
[1750979302100,12.88422648,2410.4,2410.3,0.001]
[1750979302301,14.58750082,2410.4,2410.3,0.001]
[1750979302834,34.95650082,2410.4,2410.3,0.001]
[1750979303901,41.81750082,2410.4,2410.3,0.001]
[1750979305309,27.52556335,2410.4,2410.3,0.001]
[1750979305474,37.18095159,2410.4,2410.3,0.001]
[1750979306575,26.17126258,2410.4,2410.3,0.001]
[1750979306911,31.32898824,2410.4,2410.3,0.001]
[1750979307208,35.47767725,2410.4,2410.3,0.001]
[1750979307623,34.69848901,2410.4,2410.3,0.001]
[1750979307988,23.6888,2410.4,2410.3,0.001]
[1750979308314,30.5498,2410.4,2410.3,0.001]
[1750979308808,29.7952,2410.4,2410.3,0.001]
[1750979309312,32.77242635,2410.4,2410.3,0.001]
[1750979309621,36.92111536,2410.4,2410.3,0.001]
[1750979310182,11.1262,2410.4,2410.3,0.001]
[1750979310383,19.034,2410.4,2410.3,0.001]
[1750979311017,10.369,2410.4,2410.3,0.001]
[1750979311381,19.034,2410.4,2410.3,0.001]
[1750979316222,19.026,2410.4,2410.3,0.2082]
[1750979317294,19.99801733,2410.4,2410.3,0.2082]
[1750979318390,19.026,2410.4,2410.3,0.2082]
[1750979319032,23.17468901,2410.4,2410.3,0.001]
[1750979319196,24.72358901,2410.4,2410.3,0.001]
[1750979320595,20.5749,2410.4,2410.3,0.001]
[1750979320793,24.72358901,2410.4,2410.3,0.001]
[1750979321095,25.85318073,2410.4,2410.3,0.001]
[1750979321828,21.70449172,2410.4,2410.3,0.001]
[1750979322130,25.85318073,2410.4,2410.3,0.001]
[1750979324030,21.70449172,2410.4,2410.3,0.001]
[1750979324436,25.85318073,2410.4,2410.3,0.001]
[1750979326414,21.70449172,2410.4,2410.3,0.001]
[1750979326610,19.019,2410.4,2410.3,0.001]
[1750979328699,12.177,2410.4,2410.3,0.001]
[1750979328904,19.019,2410.4,2410.3,0.001]
[1750979333536,19.7992,2410.4,2410.3,0.001]
[1750979333704,23.37298792,2410.4,2410.3,0.001]
[1750979334140,13.00398792,2410.4,2410.3,0.001]
[1750979334735,9.4302,2410.4,2410.3,0.001]
[1750979338354,8.65,2410.4,2410.3,0.001]
[1750979339652,12.79868901,2410.4,2410.3,0.001]
[1750979339852,13.34868901,2410.4,2410.3,0.001]
[1750979340057,13.55588901,2410.4,2410.3,0.001]
[1750979340562,15.40527136,2410.4,2410.3,0.001]
[1750979341348,16.19467136,2410.4,2410.3,0.001]
[1750979343224,20.56067136,2410.4,2410.3,0.001]
[1750979343456,16.19467136,2410.4,2410.3,0.001]
[1750979343659,12.04598235,2410.4,2410.3,0.001]
[1750979343878,0.2072,2410.4,2410.3,0.001]
[1750979344044,8.615,2410.4,2410.3,0.2082]
[1750979344761,1.792,2410.4,2410.3,0.2082]
[1750979344972,11.3798,2410.9,2410.4,0.8187]
[1750979344973,1.792,2410.7,2410.4,0.8187]
[1750979345150,6.829,2410.6,2410.4,0.8187]
[1750979345350,6.829,2410.6,2410.5,0.2072]
[1750979345952,6.829,2410.6,2410.5,1.0259]
[1750979346149,10.371,2410.9,2410.5,1.0259]
[1750979346474,8.618,2410.8,2410.5,0.2072]
[1750979346672,12.202,2410.9,2410.3,0.001]
[1750979346872,8.8452,2410.8,2410.5,0.2072]
[1750979347877,8.638,2410.7,2410.4,0.7842]
[1750979348056,8.638,2410.7,2410.6,0.2072]
[1750979349162,8.635,2410.7,2410.6,0.2072]
[1750979349874,8.634,2410.7,2410.6,0.2072]
[1750979350249,12.78217272,2410.7,2410.4,0.7842]
[1750979350452,12.78217272,2410.7,2410.4,0.2072]
[1750979353254,0.55,2410.6,2410.3,0.001]
[1750979353444,6.841,2410.5,2410.3,0.001]
[1750979358378,6.831,2410.4,2410.3,0.001]
[1750979358748,6.831,2410.4,2410.3,0.2082]
[1750979359149,6.831,2410.4,2410.3,0.9723]
[1750979360660,10.371,2410.9,2410.3,0.9723]
[1750979360884,1.791,2410.7,2410.3,0.2082]
[1750979361194,1.791,2410.7,2410.6,0.2072]
[1750979361355,1.791,2410.7,2410.6,1.039]
[1750979362684,0.55,2410.6,2410.3,0.001]
[1750979362861,4.69868901,2410.4,2410.3,0.001]
[1750979363056,5.71538901,2410.4,2410.3,0.001]
[1750979364157,1.5667,2410.4,2410.3,0.001]
[1750979364383,5.71538901,2410.4,2410.3,0.001]
[1750979364588,6.69740879,2410.4,2410.3,0.001]
[1750979367506,14.1319001,2410.4,2410.3,0.001]
[1750979368765,15.31940879,2410.4,2410.3,0.001]
[1750979368959,10.1887,2410.4,2410.3,0.001]
[1750979369159,9.3792,2410.4,2410.3,0.001]
[1750979370060,8.623,2410.4,2410.3,0.001]
[1750979371023,4.35563533,2410.6,2410.3,0.001]
[1750979371159,13.32368901,2410.4,2410.3,0.001]
[1750979371364,15.81435993,2410.4,2410.3,0.001]
[1750979371986,15.81835993,2410.4,2410.3,0.001]
[1750979374607,16.63465993,2410.4,2410.3,0.001]
[1750979378814,11.87687092,2410.4,2410.3,0.001]
[1750979378992,9.3782,2410.4,2410.3,0.001]
[1750979379191,13.52688901,2410.4,2410.3,0.001]
[1750979380315,13.52688901,2410.4,2410.3,0.7973]
[1750979380316,0.7572,2410.4,2410.3,0.7973]
[1750979380531,8.617,2410.4,2410.3,0.7973]
[1750979382308,8.617,2410.4,2410.3,0.001]
[1750979383018,14.66997273,2410.4,2410.3,0.001]
[1750979383225,22.31166404,2410.4,2410.3,0.001]
[1750979385134,14.87717273,2410.4,2410.3,0.001]
[1750979385296,9.3742,2410.4,2410.3,0.001]
[1750979387697,0.7572,2410.4,2410.3,0.001]
[1750979387897,9.3722,2410.4,2410.3,0.001]
[1750979388226,8.615,2410.4,2410.3,0.001]
[1750979389841,12.76368901,2410.4,2410.3,0.001]
[1750979390132,8.615,2410.4,2410.3,0.001]
[1750979390538,12.76368901,2410.4,2410.3,0.001]
[1750979393954,15.02563224,2410.4,2410.3,0.001]
[1750979394136,26.76952085,2410.4,2410.3,0.001]
[1750979395021,18.15452085,2410.4,2410.3,0.001]
[1750979395224,26.76252085,2410.4,2410.3,0.001]
[1750979402925,18.15452085,2410.4,2410.3,0.001]
[1750979403125,26.75352085,2410.4,2410.3,0.001]
[1750979403648,26.7522334,2410.4,2410.3,0.001]
[1750979403813,31.1182334,2410.4,2410.3,0.001]
[1750979408653,22.5192334,2410.4,2410.3,0.001]
[1750979408830,31.1182334,2410.4,2410.3,0.001]
[1750979409350,4.916,2410.1,2409.6,0.001]
[1750979409563,22.13404108,2409.9,2409.6,0.001]
[1750979410533,23.11749006,2409.9,2409.6,0.001]
[1750979410736,34.53561683,2409.9,2409.6,0.001]
[1750979411726,38.90161683,2409.9,2409.6,0.001]
[1750979411986,39.65451683,2409.9,2409.6,0.001]
[1750979414241,39.97274541,2409.9,2409.6,0.001]
[1750979414624,19.81879417,2409.7,2409.6,0.001]
[1750979414837,38.00424315,2409.7,2409.6,0.001]
[1750979415037,31.17524315,2409.7,2409.6,0.001]
[1750979415538,26.80924315,2409.7,2409.6,0.001]
[1750979415861,35.42540173,2409.7,2409.6,0.001]
[1750979416157,39.43857295,2409.7,2409.6,0.001]
[1750979416735,35.97070972,2409.7,2409.6,0.001]
[1750979417128,44.58870972,2409.7,2409.6,0.001]
[1750979417326,36.97549131,2409.7,2409.6,0.001]
[1750979417759,28.992,2409.7,2409.6,0.001]
[1750979417967,29.542,2409.7,2409.6,0.001]
[1750979418944,19.542,2409.7,2409.6,0.001]
[1750979419164,10.923,2409.7,2409.6,0.001]
[1750979419368,19.539,2409.7,2409.6,0.001]
[1750979419772,10.923,2409.7,2409.6,0.001]
[1750979419967,18.989,2409.7,2409.6,0.001]
[1750979420180,10.373,2409.7,2409.6,0.001]
[1750979420478,10.373,2409.7,2409.6,0.9857]
[1750979420479,12.156,2409.7,2409.6,0.9857]
[1750979420659,18.989,2409.7,2409.6,0.9857]
[1750979421249,10.373,2409.7,2409.6,0.9857]
[1750979421549,18.989,2409.7,2409.6,0.9857]
[1750979422657,10.373,2409.7,2409.6,0.9857]
[1750979422856,12.156,2409.7,2409.6,0.9857]
[1750979423061,18.987,2409.7,2409.6,0.9857]
[1750979423890,7.12385322,2411.9,2409.7,10.0]
[1750979424046,0.798,2411.6,2410.4,0.832]
[1750979424252,6.844,2411.5,2410.5,2.03410947]
[1750979424453,7.43449131,2411.3,2410.6,0.832]
[1750979424791,6.844,2411.2,2410.6,0.832]
[1750979425112,7.82424499,2411.2,2410.6,0.832]
[1750979425250,6.844,2411.2,2410.6,0.832]
[1750979425452,1.783,2411.1,2410.6,0.832]
[1750979425679,6.844,2411.0,2410.6,0.832]
[1750979426862,15.14119131,2411.0,2410.6,0.832]
[1750979427064,4.69798429,2410.9,2409.9,0.7761]
[1750979427268,10.99402765,2410.8,2409.9,0.7761]
[1750979427558,10.99402765,2410.8,2410.0,0.28742658]
[1750979427759,10.99402765,2410.8,2409.9,0.7761]
[1750979428489,6.846,2410.8,2409.9,0.7761]
[1750979428875,4.9535203,2411.1,2409.9,0.7761]
[1750979429075,8.644,2411.0,2410.0,0.757]
[1750979429858,8.644,2411.0,2410.0,4.90628506]
[1750979430213,6.846,2410.9,2410.3,0.757]
[1750979433784,0.55,2411.5,2410.4,0.757]
[1750979434096,1.799,2411.5,2411.2,0.757]
[1750979434394,1.799,2411.5,2411.3,0.2072]
[1750979434395,6.841,2411.4,2411.3,0.2072]
[1750979435997,8.638,2411.5,2411.3,0.2072]
[1750979436188,1.799,2411.5,2411.3,0.2072]
[1750979436500,1.799,2411.5,2411.4,0.2072]
[1750979437064,1.799,2411.9,2411.5,0.8158]
[1750979437267,6.84,2411.8,2411.5,0.8158]
[1750979437503,6.84,2411.8,2411.7,0.2072]
[1750979438479,0.002,2412.0,2411.7,0.2072]
[1750979438675,6.837,2411.9,2411.7,0.2072]
[1750979439580,6.837,2411.9,2411.5,0.8158]
[1750979439785,4.14662464,2411.6,2411.4,0.2072]
[1750979439995,0.55,2411.4,2410.2,1.799]
[1750979440200,6.40603462,2411.3,2410.8,0.993]
[1750979441266,2.25881705,2411.3,2410.8,0.993]
[1750979441464,4.14706479,2411.4,2410.8,0.7858]
[1750979441668,4.14706479,2411.4,2411.0,0.2072]
[1750979441902,4.69696856,2411.4,2411.0,0.2072]
[1750979442198,4.14723732,2411.3,2411.0,0.2072]
[1750979443312,4.69707807,2411.4,2411.0,0.2072]
[1750979443492,6.54489561,2411.4,2411.0,0.2072]
[1750979443672,0.2072,2411.5,2411.0,0.2072]
[1750979443872,6.836,2411.4,2411.3,0.2072]
[1750979444497,10.0,2411.6,2411.3,0.2072]
[1750979444694,6.836,2411.5,2411.3,0.2072]
[1750979444897,6.836,2411.5,2411.4,0.7608]
[1750979445498,10.98280601,2411.5,2411.3,0.2072]
[1750979445702,0.72664727,2411.4,2411.3,0.2072]
[1750979446404,4.14691343,2411.5,2411.3,0.2072]
[1750979446717,6.835,2411.4,2411.3,0.2072]
[1750979448710,11.53196856,2411.4,2411.3,0.2072]
[1750979448885,11.53196856,2411.4,2411.0,0.2072]
[1750979448886,4.14731607,2411.2,2411.0,0.2072]
[1750979449090,6.832,2411.1,2411.0,0.2072]
[1750979450389,10.97948455,2411.1,2411.0,0.2072]
[1750979450717,7.31352016,2411.1,2411.0,0.2072]
[1750979451010,4.14769379,2411.0,2410.8,0.2072]
[1750979451210,4.14782861,2410.9,2410.8,0.2072]
[1750979451412,1.14613488,2410.9,2410.6,0.2072]
[1750979451592,6.837,2410.8,2410.6,0.2072]
[1750979452412,6.837,2410.8,2410.5,0.7953]
[1750979452713,0.55,2411.0,2410.6,0.2072]
[1750979452714,0.7572,2411.0,2410.6,0.2072]
[1750979452889,6.837,2410.7,2410.6,0.2072]
[1750979453582,10.98526104,2410.7,2410.4,0.2072]
[1750979453803,6.837,2410.7,2410.4,0.2072]
[1750979454120,10.9851792,2410.7,2410.4,0.2072]
[1750979455016,4.14845798,2410.6,2410.4,0.2072]
[1750979455381,4.14876668,2410.4,2410.0,0.7582]
[1750979455591,4.14876668,2410.4,2410.2,0.2072]
[1750979455592,6.835,2410.3,2410.2,0.2072]
[1750979456116,6.835,2410.3,2410.2,0.2072]
[1750979456431,10.98386113,2410.3,2410.2,0.2072]
[1750979456828,6.835,2410.3,2410.2,0.2072]
[1750979457935,10.98386113,2410.3,2410.0,0.7582]
[1750979458114,10.98386113,2410.3,2410.0,0.9654]
[1750979458313,4.14906227,2410.2,2410.0,0.9654]
[1750979458630,4.14932915,2410.1,2409.8,0.2072]
[1750979458840,6.838,2410.0,2409.8,0.2072]
[1750979459825,1.794,2410.5,2409.7,0.8194]
[1750979459826,4.14860152,2410.5,2409.7,0.8194]
[1750979460011,4.35562594,2410.6,2410.2,0.7564]
[1750979460342,8.631,2410.5,2410.2,0.7564]
[1750979461503,12.77954727,2410.5,2410.2,0.7564]
[1750979461745,8.631,2410.5,2410.2,0.7564]
[1750979462601,12.77954141,2410.5,2410.2,0.7564]
[1750979463140,6.838,2410.4,2410.2,0.7564]
[1750979463428,6.837,2410.7,2410.4,0.2072]
[1750979463631,6.837,2410.7,2410.5,0.8313]
[1750979464046,6.837,2410.7,2410.6,0.2072]
[1750979464421,0.2072,2411.0,2410.6,0.2072]
[1750979464624,6.84,2410.9,2410.6,0.2072]
[1750979465015,5.94156743,2411.1,2410.6,0.2072]
[1750979465215,10.98767453,2411.0,2410.6,0.2072]
[1750979465615,6.84,2411.0,2410.6,0.2072]
[1750979466167,4.14791656,2410.9,2410.6,0.2072]
[1750979466716,11.97512007,2411.0,2410.6,0.2072]
[1750979466965,4.1479136,2410.9,2410.6,0.2072]
[1750979467822,4.14782861,2410.9,2410.6,0.2072]
[1750979468134,4.14788946,2410.9,2410.6,0.2072]
[1750979468642,11.9751192,2411.0,2410.6,0.2072]
[1750979468643,11.97513159,2411.0,2410.6,0.2072]
[1750979468840,7.0472,2411.0,2410.6,0.2072]
[1750979469217,4.35485736,2411.0,2410.6,0.2072]
[1750979469412,6.838,2410.9,2410.6,0.2072]
[1750979469718,10.0,2411.1,2410.7,0.8085]
[1750979469913,2.0012,2411.1,2410.7,0.8085]
[1750979470129,2.0012,2411.1,2410.8,0.2072]
[1750979470130,6.839,2411.0,2410.8,0.2072]
[1750979471529,1.794,2411.1,2410.9,0.2072]
[1750979471729,6.837,2411.0,2410.9,0.2072]
[1750979473367,6.837,2411.0,2410.9,1.0359]
[1750979474356,6.834,2411.0,2410.9,1.0359]
[1750979475565,10.368,2411.3,2410.9,1.0359]
[1750979475863,6.832,2411.1,2410.9,1.0359]
[1750979476031,6.832,2411.1,2410.9,0.8287]
[1750979476360,6.832,2411.1,2411.0,0.2072]
[1750979477360,2.0012,2411.5,2411.0,0.2072]
[1750979477560,6.831,2411.4,2411.2,0.2072]
[1750979477873,6.831,2411.4,2411.3,0.7577]
[1750979478326,14.35574319,2411.7,2411.3,0.7577]
[1750979478531,9.22599065,2411.6,2411.3,0.7577]
[1750979479855,13.37272808,2411.6,2411.3,0.7577]
[1750979480055,9.22599065,2411.6,2411.3,0.7577]
[1750979480671,13.37264325,2411.6,2411.2,0.2072]
[1750979480853,4.14735107,2411.2,2410.6,0.7604]
[1750979481050,6.828,2411.1,2410.8,0.2072]
[1750979483377,10.9754878,2411.1,2410.8,0.2072]
[1750979483574,4.14776264,2411.0,2410.8,0.2072]
[1750979484072,5.94176264,2411.0,2410.8,0.2072]
[1750979485543,3.5669968,2411.0,2410.3,0.7844]
[1750979485743,3.5669968,2411.0,2409.6,4.32947258]
[1750979485744,4.97372506,2410.5,2410.2,0.2072]
[1750979485988,6.827,2410.4,2410.2,0.2072]
[1750979486881,10.97575005,2410.4,2410.2,0.2072]
[1750979487180,4.14886113,2410.3,2409.9,0.7844]
[1750979487382,4.14904485,2410.2,2409.9,0.9916]
[1750979487588,6.828,2410.1,2409.9,0.9916]
[1750979489080,6.828,2410.1,2409.9,0.2072]
[1750979491384,6.826,2410.0,2409.9,0.2072]
[1750979492466,6.822,2410.4,2410.0,0.8307]
[1750979492872,6.822,2410.4,2410.3,0.2072]
[1750979493961,6.827,2410.4,2410.3,1.0379]
[1750979495119,6.826,2410.6,2410.3,1.0379]
[1750979495480,6.826,2410.6,2410.5,0.2072]
[1750979502518,14.72175602,2411.1,2410.5,0.2072]
[1750979502814,8.609,2411.0,2410.8,0.2072]
[1750979503342,6.82,2410.9,2410.6,0.7618]
[1750979503622,6.82,2411.0,2410.9,0.2072]
[1750979507513,12.156,2411.1,2410.9,0.2072]
[1750979507722,6.82,2411.0,2410.9,0.2072]
[1750979511405,0.55,2410.6,2409.7,0.7526]
[1750979511627,8.608,2410.5,2410.2,0.2072]
[1750979512120,7.43101766,2410.9,2409.6,10.001]
[1750979512121,1.789,2410.7,2410.5,0.7526]
[1750979512305,6.819,2410.6,2410.5,0.7526]
[1750979513209,6.819,2410.6,2410.3,0.8024]
[1750979514119,6.819,2410.6,2409.7,1.789]
[1750979514418,6.819,2410.6,2409.8,1.9814]
[1750979514588,10.96736292,2410.6,2409.8,0.8024]
[1750979514788,11.77616292,2410.6,2409.8,0.8024]
[1750979515323,7.6278,2410.6,2409.8,0.8024]
[1750979516689,11.77616799,2410.6,2409.8,0.8024]
[1750979517723,7.6278,2410.6,2409.8,0.8024]
[1750979517920,11.77619154,2410.6,2409.9,0.25914]
[1750979518227,4.1485443,2410.5,2409.9,0.25914]
[1750979518527,11.77623281,2410.6,2409.9,0.25914]
[1750979518702,7.6278,2410.6,2409.9,0.25914]
[1750979521742,11.7761736,2410.6,2409.9,0.25914]
[1750979522239,7.6278,2410.6,2410.3,0.2072]
[1750979523309,0.8051,2410.9,2410.3,0.7853]
[1750979523632,0.8051,2410.9,2410.5,0.2072]
[1750979523808,8.603,2410.8,2410.3,0.7853]
[1750979524020,1.784,2410.9,2410.8,0.2072]
[1750979524225,8.603,2410.9,2410.8,0.2072]